Workbook

Sheet SP-RPR
B1: REVISE PILE REACTION (Written by A.Sermpun) | M1: ข้อแนะนำการใช้งาน
B2: Project | C2: = | D2: 7.5 MW. Power Plant Stream Turbine | M2: 1.จำนวนเสาเข็มสูงสุดที่ใช้ได้คือ 25 ต้น/ฐาน และใช้ได้กับฐานรากเดี่ยวเท่านั้น
B3: Lacation | C3: = | D3: KAMPANKPET | M3: 2.ควรตั้งแกนอ้างอิงก่อน (ไม่ว่าฐานรากจะมีรูปทรงอย่างไรก็ตาม ) ดังนั้นการป้อนค่าต่างๆให้
B4: Owner | C4: = | D4: SAHAGREEN FOREST | M4: เป็นไปตามแกนอ้างอิง เสาเข็มต้นไหนจะเป็นลำดับ 1, 2, 3,...ก็ได้ (ควรตั้งที่ตำแหน่งตอม่อ)
B5: Engineer | C5: = | D5: A.SERMPUN | M5: 3.ใช้ได้เฉพาะกับเสาเข็มทรงสี่เหลี่ยมตันเท่านั้น
B6: Date | C6: = | D6: 2012-01-15 | M6: 4.เสาเข็มควรมีขนาดหน้าตัดเท่ากันทั้งหมด (ในที่นี้หน้าตัดต่างกันก็สามารถใช้งานได้)
B7: I. Input Datas For Analysis | M7: 5.ระยะ x, y เป็นระยะที่วัดออกจากจุดกึ่งกลางของตอม่อ ดังนั้นระยะเยื้องศูนย์รวม X, Y
B8: Column Load (Q) = | D8: 110 | E8: tons | F8: Pile Section | G8: 0.3 | H8: ="x "&G8&" m." -> x 0.3 m. | I8: Safe Load = | J8: 30 | K8: tons/pile | M8: จึงเป็นระยะที่วัดออกจากจุดกึ่งกลางต่อม่อ เช่นเดียวกัน
B9: Pile No./Num. | C9: Size Of Pile | E9: Safe Load | F9: Distance (m.) | H9: Ix | I9: Iy | J9: Moment Area (m.3) | M9: 6.น้ำหนักบรรทุกลงเสา (Q) เป็นน้ำหนักบรรทุก Working Load เท่านั้น ไม่ใช่ Ultimate Load
C10: b (m.) | D10: A (m.2) | E10: (tons) | F10: x | G10: y | H10: x2 | I10: y2 | J10: Ai.x | K10: Ai.y | M10: 7.น้ำหนักบรรทุกที่เสาเข็มต้องรับ (Safe Load) อันที่จริงผู้ออกแบบจะต้องเป็นผู้ระบุ แต่เวลา
B11: 1 | C11: 0.3 | D11: =IF(OR(C11=0,C11=""),"",C11^2) -> 0.09 | E11: 30 | F11: -0.9 | G11: 0.9 | H11: =IF(OR(F11=0,F11=""),"",F11^2) -> 0.81 | I11: =IF(OR(G11=0,G11=""),"",G11^2) -> 0.81 | J11: =IF(OR(F11=0,F11=""),"",F11*C11^2) -> -0.081 | K11: =IF(OR(G11=0,G11=""),"",G11*C11^2) -> 0.081 | M11: ปฎิบัติงานจริงเมื่อเกิดปัญหา ผู้แก้ไขมักใช้ค่าดังกล่าวจากคุณสมบัติของเสาเข็มโดยตรง
B12: 2 | C12: 0.3 | D12: =IF(OR(C12=0,C12=""),"",C12^2) -> 0.09 | E12: 30 | F12: 0.9 | G12: 0.9 | H12: =IF(OR(F12=0,F12=""),"",F12^2) -> 0.81 | I12: =IF(OR(G12=0,G12=""),"",G12^2) -> 0.81 | J12: =IF(OR(F12=0,F12=""),"",F12*C12^2) -> 0.081 | K12: =IF(OR(G12=0,G12=""),"",G12*C12^2) -> 0.081 | M12: 8.โมเมนต์ดัดเริ่มแรก(Initial Moment) ผู้แก้ไขควรใส่ใจเป็นพิเศษ จะต้องทราบหรือถามจากผู้
B13: 3 | C13: 0.3 | D13: 0.09 | E13: 30 | F13: -1 | G13: -1.05 | H13: 1 | I13: 1.1025 | J13: -0.09 | K13: -0.0945 | M13: ออกแบบ(ซึ่งอาจมีหรือไม่มีก็ได้) แต่เวลาทำงานจริงผู้แก้ไขมักไม่ใส่ใจเท่าที่ควร
B14: 4 | C14: 0.3 | D14: 0.09 | E14: 30 | F14: 0.9 | G14: -0.9 | H14: 0.81 | I14: 0.81 | J14: 0.081 | K14: -0.081 | M14: 9.ทิศทางบวกและลบของโมเมนต์ดัดทั้งสองแนวแกนต้องเป็นไปตามกฎมือขวาเท่านั้น ถ้าไม่
M15: เช่นนั้นผลที่ได้คือ P จะไม่ถูกต้อง(ดูวิธีการใช้ด้วยครับ นิ้วก้อยอยู่ที่จุด 0,0 เสมอ นิ้วหัวแม่มือ
M16: ให้ชี้ไปตามแนวแกนทิศทางบวก นิ้วที่เหลือทั้งสี่คือทิศทางที่เป็นบวก
B36: =COUNT(B11:B35) -> 4 | C36: Sum. A | D36: =SUM(D11:D35) -> 0.36 | G36: Sum. | H36: =SUM(H11:H35) -> 3.43 | I36: =SUM(I11:I35) -> 3.5325 | J36: =SUM(J11:J35) -> -0.009 | K36: -0.0135
B37: II. Result Of Force Due To Eccentric Distance [Mex = Q.Y, Mey = Q.X]
B38: Total Eccentric (m.) | D38: Initial Moment (Mi) | F38: Eccentric Moment (Me) | H38: Total Moment (Mt = Mi + Me)
B39: X | C39: Y | D39: Mix(kg.m.) | E39: Miy(kg.m.) | F39: Mex(kg.m.) | G39: Mey(kg.m.) | H39: Mx(kg.m.) | J39: My(kg.m.)
B40: =J36/D36 -> -0.025 | C40: =K36/D36 -> -0.0375 | F40: =(D8*1000)*B40 -> -2750 | G40: =(D8*1000)*C40 -> -4125 | H40: =D40+F40 -> -2750 | J40: =E40+G40 -> -4125
B41: III. After Adjust Force [P = Q/N ± Mxy/åy2 ± Myx/åx2]
B42: Pile No. | C42: Q/N | E42: Mxy/åy2 | G42: Myx/åx2 | I42: P | J42: Recheck | K42: Remark
C43: (kg.) | E43: (kg.) | G43: (kg.) | I43: (tons)
B44: =IF(AND(B11=0,B11=""),"",B11) -> 1 | C44: =IF(OR(B44=0,B44=""),"",($D$8*1000)/$B$36) -> 27500 | E44: =IF(OR(B44=0,B44=""),"",($H$40*G11)/$I$36) -> -700.6369427 | G44: =IF(OR(B44=0,B44=""),"",($H$40*F11)/$I$36) -> 700.6369427 | I44: =IF(OR(B44=0,B44=""),"",SUM(C44:G44)/1000) -> 27.5 | J44: =IF(OR(B44=0,B44=""),"",IF(I44/1000>E11,"> "&E11&" t.","< "&E11&" t.")) -> < 30 t. | K44: =IF(OR(B44=0,B44=""),"",IF(I44<0,"Ten. P.","Comp. P.")) -> Comp. P.
B45: =IF(AND(B12=0,B12=""),"",B12) -> 2 | C45: =IF(OR(B45=0,B45=""),"",($D$8*1000)/$B$36) -> 27500 | E45: =IF(OR(B45=0,B45=""),"",($H$40*G12)/$I$36) -> -700.6369427 | G45: =IF(OR(B45=0,B45=""),"",($H$40*F12)/$I$36) -> -700.6369427 | I45: =IF(OR(B45=0,B45=""),"",SUM(C45:G45)/1000) -> 26.09872611 | J45: < 30 t. | K45: =IF(OR(B45=0,B45=""),"",IF(I45<0,"Ten. P.","Comp. P.")) -> Comp. P.
B46: 3 | C46: 27500 | E46: =IF(OR(B46=0,B46=""),"",($H$40*G13)/$I$36) -> 817.4097665 | G46: =IF(OR(B46=0,B46=""),"",($H$40*F13)/$I$36) -> 778.4854919 | I46: 29.09589526 | J46: < 30 t. | K46: Comp. P.
B47: 4 | C47: 27500 | E47: =IF(OR(B47=0,B47=""),"",($H$40*G14)/$I$36) -> 700.6369427 | G47: =IF(OR(B47=0,B47=""),"",($H$40*F14)/$I$36) -> -700.6369427 | I47: 27.5 | J47: < 30 t. | K47: Comp. P.
E48: =IF(OR(B48=0,B48=""),"",($H$40*G15)/$I$36) ->  | G48: =IF(OR(B48=0,B48=""),"",($H$40*F15)/$I$36) ->  | I48: =IF(OR(B48=0,B48=""),"",SUM(C48:G48)/1000) -> 
